Cogmind - Beta 9.6 @@@ ROGUE MODE // 2020.06.05 @ 06:53:20 // AFD2020/Player2 Player: Rod99 Result: Core destroyed Performance ------------- Evolutions (1) 500 Regions Visited (2) 400 Robots Destroyed (25) 125 Value Destroyed (764) 764 Prototype IDs (2) 40 Alien Tech Used (0) 0 Bonus (386) 386 TOTAL SCORE: 2215 Bonus ------- High Alert Combat Kills 118 Follower Combat Kills 514 Friendly Fire -246 Cogmind --------- Core Integrity 0/400 Matter 295/300 Energy 125/125 System Corruption 0% Temperature Cool (0) Movement Flying (35) Location -9/Materials Parts ------- > --- POWER (1) -------- Light Ion Engine > --- PROPULSION (3) --- Improved Flight Unit > --- UTILITY (3) ------ Propulsion Shielding Utility Shielding > --- WEAPON (2) ------- (None) > --- INVENTORY (4) ---- Cooled Ion Engine Peak State ------------ > --- POWER ------------ Cooled Ion Engine > --- PROPULSION ------- Improved Flight Unit Improved Flight Unit Improved Flight Unit > --- UTILITY ---------- Weight Redist. System Propulsion Shielding Utility Shielding > --- WEAPON ----------- Spread Laser Heavy Assault Rifle > --- INVENTORY -------- Light Ion Engine Flight Unit [Rating: 20] Favorites ----------- Power Light Ion Engine Engine Light Ion Engine Propulsion Improved Flight Unit Treads Light Treads Flight Unit Improved Flight Unit Utility Utility Shielding Device Weight Redist. System Storage Small Storage Unit Protection Utility Shielding Weapon Small Laser Energy Gun Small Laser Ballistic Gun Heavy Assault Rifle Special Weapon Mining Laser Build | -11 -10 -9 ------- Run | Scr Mat Mat Slots Evolved 2 | . . 2 Power . | . . . Propulsion 1 | . . 1 Utility 1 | . . 1 Weapon . | . . . Parts Attached 35 | 6 9 20 Power 8 | 1 2 5 Engine 8 | 1 2 5 Core . | . . . Reactor . | . . . Propulsion 10 | 2 3 5 Treads 3 | 2 1 . Leg . | . . . Wheel . | . . . Hover . | . . . Flight 7 | . 2 5 Utility 6 | 1 3 2 Device 1 | . . 1 Storage 2 | 1 1 . Processor . | . . . Hackware . | . . . Protection 3 | . 2 1 Artifact . | . . . Weapon 11 | 2 1 8 Energy Gun 8 | 2 1 5 Energy Cannon . | . . . Ballistic Gun 1 | . . 1 Ballistic Cannon . | . . . Launcher . | . . . Special Weapon 2 | . . 2 Impact Weapon . | . . . Slashing Weapon . | . . . Piercing Weapon . | . . . Special Melee Weapon . | . . . Unidentified Prototypes 2 | . . 2 Parts Lost 11 | . . 11 Power . | . . . Propulsion 3 | . . 3 Utility 1 | . . 1 Weapon 7 | . . 7 Highest Loss Streak 4 | . . 4 Average Slot Usage (%) 88 | . 91 85 Engine 11 | . 14 10 Treads 6 | . 14 . Flight 20 | . 12 26 Device 4 | . . 8 Storage 4 | . 10 . Protection 16 | . 10 21 Energy Gun 17 | . 28 7 Ballistic Gun 1 | . . 2 Special Weapon 4 | . . 9 Naked Turns . | . . . Heaviest Build 16 | 10 12 16 Greatest Support 40 | 40 40 24 Greatest Overweight (x) 4 | . 2 4 Average Overweight (x) . | . . . Largest Inventory Capacity 6 | 6 6 4 Average Capacity 4 | 5 5 4 Most Carried 4 | 4 3 4 Average Carried 1 | 1 . 2 Final Capacity 6 | 6 4 6 Final Carried 5 | 2 2 5 Class Distribution -------------------- 73% | Mutant 26% | Sprinter Dominant Class ---------------- Mutant | -10/Materials Sprinter | -9/Materials Resources | -11 -10 -9 ----------- Run | Scr Mat Mat Matter Collected 585 | 189 120 276 Remotely . | . . . Salvage Created 832 | . 275 557 Parts 45 | . 22 23 Haulers Intercepted 1 | . . 1 Recyclers Shooed 3 | . 2 1 Parts Field Recycled . | . . . Retrieved Matter . | . . . Parts Self-Destructed . | . . . Prevented . | . . . Kills | -11 -10 -9 ------- Run | Scr Mat Mat Combat Hostiles Destroyed 17 | . 5 12 Guns 10 | . 5 5 Cannons 4 | . . 4 AOE 3 | . . 3 Classes Destroyed 10 | . 5 5 Worker 1 | . 1 . Builder 2 | . 2 . Hauler 1 | . . 1 Recycler 1 | . . 1 Watcher 3 | . 2 1 Swarmer 2 | . 2 . Grunt 10 | . 3 7 Brawler 1 | . . 1 Duelist 1 | . . 1 Sentry 3 | . . 3 Best Kill Streak 5 | . 3 5 Combat Bots Only 4 | . 2 4 Max Kills in Single Turn 2 | . 1 2 Gunslinging . | . . . Exploded 1 | . . 1 Melee . | . . . Uniques/NPCs Destroyed . | . . . Combat | -11 -10 -9 -------- Run | Scr Mat Mat Damage Taken 1215 | . 225 990 Core 292 | . 34 258 Absorbed by Shields . | . . . Core Remaining (%) 59 | 100 18 . Volleys Fired 111 | . 35 76 Largest 2 | . 2 2 Hottest 200 | . 80 200 Shots Fired 185 | . 70 115 Gun 164 | . 70 94 Cannon . | . . . Launcher . | . . . Special 21 | . . 21 Kinetic 31 | . . 31 Thermal 102 | . 35 67 Explosive . | . . . Electromagnetic 52 | . 35 17 Robot Hit Streak 10 | . 5 10 Robot Miss Streak 8 | . 8 7 Penetration Max . | . . . Secondary Targets 1 | . 1 . Max Gunslinging Chain 1 | . 1 . Shots Hit Robots 101 | . 29 72 Core Hits 55 | . 12 43 Critical Hits . | . . . Critical Kills . | . . . Critical Parts Destroyed . | . . . Melee Attacks . | . . . Impact . | . . . Slashing . | . . . Piercing . | . . . Sneak Attacks . | . . . Combat Hostiles . | . . . Follow-up Attacks . | . . . Damage Inflicted 1694 | . 455 1239 Guns 1324 | . 455 869 Cannons . | . . . Explosions 151 | . . 151 Melee . | . . . Ramming 3 | . . 3 Kinetic 318 | . . 318 Thermal 1025 | . 192 833 Explosive . | . . . Electromagnetic 348 | . 263 85 Impact . | . . . Slashing . | . . . Piercing . | . . . Highest Corruption 1 | . 1 . Average Corruption 1 | . 1 . Corruption Purged . | . . . Overload Shots . | . . . Overflow Damage . | . . . Projectiles . | . . . Explosions . | . . . Melee . | . . . Knockbacks . | . . . Impact . | . . . Kinetic . | . . . Secondary . | . . . Self-Inflicted Damage 14 | . . 14 Shots 1 | . . 1 Rammed 1 | . . 1 Targets Rammed 1 | . . 1 Kicked . | . . . Crushed . | . . . Highest Temperature 252 | . 207 252 Average Temperature 56 | . 69 49 Received Heat Transfer 510 | . 36 474 Siege Activations . | . . . Robots Corrupted . | . . . Combat Hostiles . | . . . Parts Fried . | . . . Impact Corruptions . | . . . Robots Melted . | . . . Combat Hostiles . | . . . Parts Melted 1 | . 1 . Heat Transferred 1697 | . 387 1310 Parts Sabotaged . | . . . Parts Stolen . | . . . Parts Stripped . | . . . Power Chain Reactions 2 | . . 2 Missiles Intercepted . | . . . Alert | -11 -10 -9 ------- Run | Scr Mat Mat Peak Influence 828 | . 359 828 Average Influence 322 | . 164 506 Maximum Alert Level 3 | . 1 3 Low Security (%) 42 | 100 70 11 Level 1 29 | . 30 32 Level 2 15 | . . 31 Level 3 12 | . . 25 Level 4 . | . . . Level 5 . | . . . High Security . | . . . Max Security . | . . . Squads Dispatched 12 | . 2 10 Investigation 6 | . 2 4 Extermination . | . . . Reinforcement 5 | . . 5 Assault 1 | . . 1 Garrison . | . . . Intercept . | . . . Construction Impeded 1 | . . 1 Haulers Reinforced . | . . . Stealth | -11 -10 -9 --------- Run | Scr Mat Mat Distress Signals 4 | . 1 3 Communications Jammed . | . . . Distress Signals . | . . . Times Spotted 58 | . 19 39 Peak Tracking Total 7 | . 5 7 Tactical Retreats 3 | . 3 . Traps | -11 -10 -9 ------- Run | Scr Mat Mat Traps Triggered 2 | . 2 . Indirectly . | . . . Trap Hack Attempts . | . . . Triggered . | . . . Disarmed 2 | . . 2 Reprogrammed . | . . . Reused . | . . . Traps Extracted . | . . . Installed . | . . . Triggered 1 | . . 1 Machines | -11 -10 -9 ---------- Run | Scr Mat Mat Machines Disabled 8 | . 1 7 Max in Single Turn 1 | . 1 1 Machines Sabotaged . | . . . Garrisons Compromised . | . . . Overloaded Fab Kills . | . . . Fab Network Shutdowns . | . . . Hacking | -11 -10 -9 --------- Run | Scr Mat Mat Machines Accessed 12 | . 7 5 Terminals 8 | . 5 3 Fabricators . | . . . Repair Stations 2 | . 1 1 Recycling Units 1 | . 1 . Scanalyzers 1 | . . 1 Garrison Access . | . . . Total Hacks 59 | . 30 29 Successful 40 | . 21 19 Failed 19 | . 9 10 Catastrophic 1 | . 1 . Database Lockouts . | . . . Manual . | . . . Terminals 33 | . 17 16 Fabricators . | . . . Repair Stations 7 | . 2 5 Recycling Units 11 | . 11 . Scanalyzers 8 | . . 8 Garrison Access . | . . . Terminal Hacks 17 | . 10 7 Record 6 | . 4 2 Branch Access Points 1 | . . 1 Alert Level 2 | . 2 . Locate Traps 1 | . 1 . Disarm Traps 1 | . . 1 Dispatch Records 1 | . 1 . Hauler Manifests 3 | . 1 2 Zone Layout 2 | . 1 1 Fabricator Hacks . | . . . Repair Station Hacks 7 | . 2 5 Scan Component 4 | . 1 3 Repair 3 | . 1 2 Recycling Unit Hacks 9 | . 9 . Process 1 | . 1 . Report Inventory 1 | . 1 . Retrieve Matter 7 | . 7 . Scanalyzer 7 | . . 7 Insert Component 4 | . . 4 Analyze 3 | . . 3 Garrison Access Hacks . | . . . Unauthorized Hacks . | . . . Terminals . | . . . Fabricators . | . . . Repair Stations . | . . . Recycling Units . | . . . Scanalyzers . | . . . Garrison Access . | . . . Data Cores Recovered . | . . . Used . | . . . Hacking Detections 11 | . 6 5 Full Trace Events 10 | . 5 5 Feedback Events 1 | . 1 . Corruption 1 | . 1 . Feedback Blocked . | . . . Robot Schematics Acquired . | . . . Robots Built . | . . . Matter . | . . . Time . | . . . Total Robot Build Rating . | . . . Part Schematics Acquired 3 | . . 3 Parts Built . | . . . Matter . | . . . Time . | . . . Total Part Build Rating . | . . . Parts Repaired 3 | . 1 2 Time 103 | . 26 77 Parts Recycled . | . . . Recycled Matter 93 | . 93 . Retrieved Matter 93 | . 93 . Retrieved Components . | . . . Parts Scanalyzed 4 | . . 4 Part Schematics Acquired 3 | . . 3 Parts Damaged . | . . . Bothacking | -11 -10 -9 ------------ Run | Scr Mat Mat Used RIF Installer . | . . . Robots Hacked . | . . . Non-combat . | . . . Combat . | . . . Robot Hacks Applied . | . . . Relay Couplers Released . | . . . Robots Rewired . | . . . Allies Hacked . | . . . Hacks Repelled . | . . . Allies | -11 -10 -9 -------- Run | Scr Mat Mat Total Allies 1 | . 1 . Largest Group 1 | . 1 1 Highest-Rated Group 64 | . 59 64 Highest-Rated Ally 64 | . 59 64 Total Orders . | . . . Ally Attacks 67 | . 22 45 Total Damage 2498 | . 275 2223 Kills 34 | . 6 28 Allies Corrupted . | . . . Allies Melted . | . . . Intel | -11 -10 -9 ------- Run | Scr Mat Mat Robot Analysis Total . | . . . Derelict Logs Recovered . | . . . Drone Launches . | . . . Drone Recoveries . | . . . Exploration | -11 -10 -9 ------------- Run | Scr Mat Mat Turns Passed 1184 | 71 530 583 Spaces Moved 900 | 43 456 401 Core 13 | 10 . 3 Treads 146 | 33 113 . Legs . | . . . Wheels . | . . . Hover . | . . . Flight 741 | . 343 398 Fastest Speed 29 | 50 37 29 Average Speed 59 | 134 68 40 Slowest Speed 250 | 160 200 250 Overloaded Moves . | . . . Propulsion Burnouts . | . . . Robots Hopped . | . . . Cave-ins Triggered . | . . . Exploration Rate (%) 39 | 5 68 44 Regions Visited 2 Branch Regions . Pre-discovered Areas . | . . . Known Exits Taken . | . . . Unknown Exits Taken 2 | 1 1 . Scrap Searched . | . . . Spaces Dug . | . . . Terrain Destroyed 10 | . . 10 Melee . | . . . Projectile 2 | . . 2 AOE 8 | . . 8 Actions | -11 -10 -9 --------- Run | Scr Mat Mat Total 1323 | 56 605 662 Wait 237 | . 86 151 Move 898 | 42 455 401 Hop . | . . . Pick Up 29 | 8 11 10 Fast Attach . | . . . Attach 22 | 6 5 11 Detach 1 | . . 1 Swap 13 | . 4 9 Drop 11 | . 9 2 Fire 111 | . 35 76 Melee . | . . . Ram 1 | . . 1 Kick . | . . . Crush . | . . . Escape Stasis . | . . . Rewire . | . . . Trap . | . . . Miscellaneous . | . . . Route ------- -11/Scrapyard -10/Materials -9/Materials (discovered 3 exits: [*Mat] / *Min x2) History --------- Turn | Location | Event 5 | -11/Scrapyard | Discovered new exit (range 16) 72 | -11/Scrapyard | Entered Materials 159 | -10/Materials | Repaired Lgt. Treads 300 | -10/Materials | Core integrity fell below 50% 302 | -10/Materials | Build established: Mutant 330 | -10/Materials | Core integrity fell below 20% 437 | -10/Materials | Discovered new exit (range 13) 602 | -10/Materials | Entered another Materials area 602 | -9/Materials | Accompanied by 1 ally 602 | -9/Materials | Evolved 2 slots: Propulsion x1, Utility x1 632 | -9/Materials | Identified exit to Mines 698 | -9/Materials | Discovered new exit (range 5) 946 | -9/Materials | Core integrity fell below 50% 1002 | -9/Materials | First assault squad dispatched 1061 | -9/Materials | Repaired Cld. Ion Engine 1073 | -9/Materials | Core integrity fell below 20% 1114 | -9/Materials | Build established: Sprinter 1124 | -9/Materials | Repaired Propulsion Shielding 1172 | -9/Materials | Lost 4 parts (2n1u1w) 1185 | -9/Materials | Core destroyed Last Messages --------------- Player 2: "Going to be sad to eventually lose this precious Katana." 01164_ R-06 Scavenger collects Signal Interpreter. Player 2: "I could really use a weapon." 01171_ U-05 Engineer lays Concrete. 01171_ Destroyed Imp. Hover Unit. 01172_ Player 2 attaches Hover Unit. 01172_ U-05 Engineer builds a Wall. 01176_ The unstable cave ceiling collapses. 01176_ U-05 Engineer lays Concrete. 01176_ Sml. Laser destroyed. 01177_ U-05 Engineer builds a Wall. 01181_ U-05 Engineer lays Concrete. 01182_ The unstable cave ceiling collapses. 01182_ 2 Matter crushed. 01182_ U-05 Engineer lays Concrete. 01183_ Slammed into U-05 Engineer. 01183_ ALERT: Construction progress impeded, dispatching reinforcements to local area. 01185_ Acquired 5 matter. 01185_ G-34 Mercenary destroyed. Map ----- +----------------------------------------------------+ | ?????????????????# """= "" #???????????????? | | ?????????????????# % """ """ #???????????????? | | ?????????######### ! """ """ #???????????????? | | ?????????# ! T " #???????????????? | | ?????????# # #???????????????? | | ?????????# ## ###+#######???????????????? | | ?????????# """ """ # ????????????????? | | ?????????# """ """ # #????????????????????? | | ?????????# """ """ + #????????????????????? | | ?????????# # #####?????????????????????? | | ?????????# # #?????????????????????????? | | ?????????########### ###???????????????????????? | | ???????????????????# # #???????????????????????? | | ???????????????????# #???????????????????????? | | ???????????????????# ###??????????????????????## | | ??????????????????## ####?????????????????????# | | ??????????????????# "#?????????????????????# | | ??????????????????# ""#?????????????????????# | | ??????????????????# !!#?????????????????????# | | ??????????????????# > ""#?????????????????????# | | ??????????????????# g !!#?????????????????????# | | ?????????????????## ""############??????????# | | ?????????????????# " ## #??????????# | | ??????????????????# "" #??????????# | | ??????????????????# %= # # "" #??????????## | | ?????????####?????# u @ # %"" #???????????? | | ????????? ????# % * #???????????? | | ?????????"" ##### @ # % """#???????????? | | ?????????"" # = R"#???????????? | | ?????????"" %* """#???????????? | | ?????????"" = #???????????? | | ?????????"" ##########???????????? | | ?????????"" # % % #????????????????????? | | ???????"""" % *####??????????????????? | | ?????? # #???????????######## | | ????????##### # = #???######### | | ????????????### #?? + """ " | | ??????????????# #?# ##### """ " | | ??????????????## # ### #???# """ T | | ???????????????# ## #? #???# """ " | | ???????????????# ?# #? #???# """ " | | ???????????????# ?# #?? #???# | | ???????????????# ?####+######?? #???# | | ???????????????# ?????# ????????? #???#######+ | | ???????????????# ????## ####????? #???????# | | ???????????????# #### #????? #???????# | | ??????????????? ? ????? #???##### T | | ??????????????? ??? ?????? #???# # | | ?????????????? ???? ?????? #???#" # | | ??????????????###?????# ! ??????### #???#T ## | +----------------------------------------------------+ Best States ------------- Heat Dissipation 28 Energy Generation 14 Energy Capacity 280 Matter Stores 400 Matter Capacity 400 Sight Range 16 Terrain Scan Density 10 Additional Mass Support 6 Propulsion Shielding 33 Utility Shielding 33 Evasion (%) 64 Recoil Reduction 2 Item Schematics ----------------- Flight Unit | -9/Materials | Scanalyzed Lgt. Ion Engine | -9/Materials | Scanalyzed Sml. Laser | -9/Materials | Scanalyzed Robot Schematics ------------------ None Fabricated ------------ Nothing Alien Tech Used ----------------- None Achievements -------------- None Challenges ------------ None Player 2 | -11 -10 -9 ---------- Run | Scr Mat Mat Slots Evolved 2 | . 2 . Power . | . . . Propulsion 1 | . 1 . Utility . | . . . Weapon 1 | . 1 . Parts Attached 36 | . 14 22 Parts Lost 14 | . 4 10 Damage Taken 1166 | . 503 663 Core 312 | . 170 142 Player 2/Cogmind (%) 51 | . 83 35 Absorbed by Shields . | . . . Damage Inflicted 2498 | . 275 2223 Player 2/Cogmind (%) 59 | . 37 64 Combat Hostiles Destroyed 22 | . 5 17 Player 2/Cogmind (%) 56 | . 50 58 Game ------ Seed GravmagPrecisionCoupler Manual? 0 Play Time 00:28:04 Cumulative 13.0 hours Start 2020.06.05 @ 06:25:03 End 2020.06.05 @ 06:53:20 Sessions 1 Manual Loads 0 Difficulty Rogue Special Mode AFD2020/Player2 Game No. 16 Rogue 16 Adventurer 0 Explorer 0 Win Type - Total 0 Types 0/0/0/0/0/0/0 Lore% 18 Gallery% 15 Achievement% 14 Wizard Run 0 Options --------- ASCII 0 Keyboard 0 Movement Mouse Keybinds 0 Fullscreen 1 Font 12/Smallcaps Map View 83x54 Tactical HUD 1 Map Filters NONE Filters NONE Steam 1 RUN: 396b5677-692a-4f81-86f7-38c6b55df847